bitfinex-derivatives/quotes_BNBF0:USTF0_20241225
["timestamp","ask_amount","ask_price","bid_price","bid_amount"]
[1735141032379,0.2605495,706.3,704.65,0.28382885]
[1735141033285,0.28316178,706.31,704.65,0.28382885]
[1735141038786,0.28316178,706.31,704.66,0.184]
[1735141040188,0.28316178,706.31,704.68,0.28381676]
[1735141053998,0.28316178,706.31,704.68,0.46781676]
[1735141077208,0.26057834,706.3,704.68,0.46781676]
[1735141080618,0.2606261,706.29,704.68,0.46781676]
[1735141080813,0.28316178,706.31,704.68,0.46781676]
[1735141080814,0.2606261,706.28,704.68,0.46781676]
[1735141081016,0.2606261,706.3,704.68,0.46781676]
[1735141081212,0.2606261,706.29,704.68,0.46781676]
[1735141081414,0.2606261,706.28,704.68,0.46781676]
[1735141081616,0.2606261,706.27,704.68,0.46781676]
[1735141081812,0.2606261,706.26,704.68,0.46781676]
[1735141082017,0.2606261,706.25,704.68,0.46781676]
[1735141082217,0.2606261,706.24,704.68,0.46781676]
[1735141082412,0.2606261,706.23,704.68,0.46781676]
[1735141082613,0.28316178,706.31,704.68,0.46781676]
[1735141082614,0.2606261,706.22,704.68,0.46781676]
[1735141082919,0.2606261,706.21,704.68,0.46781676]
[1735141083113,0.2606261,706.3,704.68,0.46781676]
[1735141083314,0.2606261,706.29,704.68,0.46781676]
[1735141083516,0.2606261,706.28,704.68,0.46781676]
[1735141083715,0.2606261,706.27,704.68,0.46781676]
[1735141083918,0.2606261,706.26,704.68,0.46781676]
[1735141084120,0.2606261,706.25,704.68,0.46781676]
[1735141084418,0.2606261,706.24,704.68,0.46781676]
[1735141084621,0.2606261,706.23,704.68,0.46781676]
[1735141084822,0.2606261,706.22,704.68,0.46781676]
[1735141085022,0.2606261,706.21,704.68,0.46781676]
[1735141085222,0.2606261,706.2,704.68,0.46781676]
[1735141085423,0.2606261,706.19,704.68,0.46781676]
[1735141085724,0.2606261,706.18,704.68,0.46781676]
[1735141085918,0.2606261,706.17,704.68,0.46781676]
[1735141086223,0.2606261,706.16,704.68,0.46781676]
[1735141086418,0.2606261,706.15,704.68,0.46781676]
[1735141086615,0.28316178,706.31,704.68,0.46781676]
[1735141086821,0.26066685,706.3,704.68,0.46781676]
[1735141089823,0.26072491,706.29,704.68,0.46781676]
[1735141090022,0.26072491,706.28,704.68,0.46781676]
[1735141090222,0.26072491,706.27,704.68,0.46781676]
[1735141090422,0.26072491,706.26,704.68,0.46781676]
[1735141090620,0.26071885,706.25,704.68,0.46781676]
[1735141090824,0.26071885,706.24,704.68,0.46781676]
[1735141091025,0.26071885,706.23,704.68,0.46781676]
[1735141091222,0.26071885,706.22,704.68,0.46781676]
[1735141091426,0.26071885,706.21,704.68,0.46781676]
[1735141091626,0.26071885,706.2,704.68,0.46781676]
[1735141091821,0.26071885,706.19,704.68,0.46781676]
[1735141092021,0.26071885,706.18,704.68,0.46781676]
[1735141092326,0.26071885,706.17,704.68,0.46781676]
[1735141092526,0.26071885,706.16,704.68,0.46781676]
[1735141092725,0.26071885,706.15,704.68,0.46781676]
[1735141092927,0.26071885,706.14,704.68,0.46781676]
[1735141093227,0.26071885,706.13,704.68,0.46781676]
[1735141093422,0.26070576,706.12,704.68,0.46781676]
[1735141093623,0.26070576,706.11,704.68,0.46781676]
[1735141093820,0.26070576,706.1,704.68,0.46781676]
[1735141094024,0.26070576,706.09,704.68,0.46781676]
[1735141094227,0.26070576,706.08,704.68,0.46781676]
[1735141094420,0.26070576,706.07,704.68,0.46781676]
[1735141094621,0.26070576,706.06,704.68,0.46781676]
[1735141094824,0.26070576,706.05,704.68,0.46781676]
[1735141095028,0.26070576,706.04,704.68,0.46781676]
[1735141095222,0.26070576,706.03,704.68,0.46781676]
[1735141095428,0.26070576,706.02,704.68,0.46781676]
[1735141095620,0.26070576,706.01,704.68,0.46781676]
[1735141095820,0.28316178,706.31,704.68,0.46781676]
[1735141095821,0.26070576,706.0,704.68,0.46781676]
[1735141096123,0.26070576,705.99,704.68,0.46781676]
[1735141096321,0.26070576,705.98,704.68,0.46781676]
[1735141096628,0.26070576,705.97,704.68,0.46781676]
[1735141096824,0.26070576,705.96,704.68,0.46781676]
[1735141097021,0.26070576,705.95,704.68,0.46781676]
[1735141097222,0.26070576,705.94,704.68,0.46781676]
[1735141097425,0.26070576,705.93,704.68,0.46781676]
[1735141097622,0.26070576,705.92,704.68,0.46781676]
[1735141097821,0.26070576,705.91,704.68,0.46781676]
[1735141098023,0.26070576,705.9,704.68,0.46781676]
[1735141098222,0.26070576,705.89,704.68,0.46781676]
[1735141098426,0.28316178,706.31,704.68,0.46781676]
[1735141098624,0.260708,706.3,704.68,0.46781676]
[1735141098826,0.26070951,706.29,704.68,0.46781676]
[1735141099031,0.2607092,706.28,704.68,0.46781676]
[1735141099228,0.2607092,706.27,704.68,0.46781676]
[1735141099527,0.28316178,706.31,704.68,0.46781676]
[1735141099731,0.26069013,706.3,704.68,0.46781676]
[1735141101831,1.30097693,706.3,704.68,0.46781676]
[1735141102026,0.26069013,706.29,704.68,0.46781676]
[1735141102428,1.30097693,706.29,704.68,0.46781676]
[1735141102629,0.26069013,706.28,704.68,0.46781676]
[1735141103229,1.0402868,706.27,704.68,0.46781676]
[1735141103426,0.26069013,706.26,704.68,0.46781676]
[1735141104531,0.26067837,706.25,704.68,0.46781676]
[1735141104831,0.26067837,706.24,704.68,0.46781676]
[1735141105023,0.26067837,706.23,704.68,0.46781676]
[1735141105229,0.26067837,706.22,704.68,0.46781676]
[1735141105425,0.26067837,706.21,704.68,0.46781676]
[1735141105729,0.26067837,706.2,704.68,0.46781676]
[1735141105924,0.26067837,706.19,704.68,0.46781676]
[1735141106128,0.26067837,706.18,704.68,0.46781676]
[1735141106326,0.26067837,706.17,704.68,0.46781676]
[1735141106526,0.26067837,706.16,704.68,0.46781676]
[1735141106832,0.26067837,706.15,704.68,0.46781676]
[1735141107044,1.0402868,706.24,704.68,0.46781676]
[1735141107228,0.26070586,706.23,704.68,0.46781676]
[1735141107629,1.0402868,706.2,704.68,0.46781676]
[1735141107827,0.26070586,706.19,704.68,0.46781676]
[1735141108533,0.26070586,706.19,704.68,0.184]
[1735141109836,1.0402868,706.17,704.68,0.184]
[1735141110034,0.26070586,706.16,704.68,0.184]
[1735141110736,0.26070586,706.15,704.68,0.184]
[1735141110936,0.26070586,706.14,704.68,0.184]
[1735141111238,0.26070586,706.13,704.68,0.184]
[1735141111537,1.0402868,706.18,704.68,0.184]
[1735141111538,0.26069855,706.12,704.68,0.184]
[1735141111737,0.26069855,706.11,704.68,0.184]
[1735141111940,0.26069855,706.1,704.68,0.184]
[1735141112133,0.26069855,706.09,704.68,0.184]
[1735141112439,0.26069855,706.08,704.68,0.184]
[1735141112739,0.26069855,706.07,704.68,0.184]
[1735141112940,1.0402868,705.98,704.68,0.184]
[1735141113135,0.26069855,705.97,704.68,0.184]
[1735141113738,1.0402868,705.94,704.68,0.184]
[1735141113936,0.26069855,705.93,704.68,0.184]
[1735141114738,1.0402868,705.76,704.68,0.184]
[1735141114939,0.26069855,705.75,704.68,0.184]
[1735141115340,0.26076884,705.74,704.68,0.184]
[1735141115535,0.26076884,705.73,704.68,0.184]
[1735141115738,0.26076884,705.72,704.68,0.184]
[1735141115943,0.26076884,705.71,704.68,0.184]
[1735141116243,0.26077311,705.7,704.68,0.184]
[1735141116543,0.26077311,705.69,704.68,0.184]
[1735141116743,0.26077311,705.68,704.68,0.184]
[1735141116942,0.26077311,705.67,704.68,0.184]
[1735141117142,1.0402868,705.74,704.68,0.184]
[1735141117143,0.26077311,705.66,704.68,0.184]
[1735141117442,0.26077311,705.65,704.68,0.184]
[1735141117638,0.26077311,705.64,704.68,0.184]
[1735141117842,1.0402868,705.75,704.68,0.184]
[1735141118042,0.26075773,705.74,704.68,0.184]
[1735141118540,0.26075773,705.73,704.68,0.184]
[1735141118844,0.26075773,705.72,704.68,0.184]
[1735141119041,0.26075773,705.71,704.68,0.184]
[1735141119242,0.26075773,705.7,704.68,0.184]
[1735141119443,0.26075773,705.69,704.68,0.184]
[1735141119642,0.26075773,705.68,704.68,0.184]
[1735141119843,0.26075773,705.67,704.68,0.184]
[1735141120143,0.26075773,705.66,704.68,0.184]
[1735141120340,0.26075773,705.65,704.68,0.184]
[1735141120543,1.0402868,705.73,704.68,0.184]
[1735141120738,0.26076435,705.72,704.68,0.184]
[1735141120944,0.26076336,705.71,704.68,0.184]
[1735141121143,1.0402868,705.73,704.68,0.184]
[1735141121144,0.26076336,705.7,704.68,0.184]
[1735141121342,0.26076336,705.69,704.68,0.184]
[1735141121540,0.26076336,705.68,704.68,0.184]
[1735141121740,0.26076336,705.67,704.68,0.184]
[1735141121940,0.26076336,705.66,704.68,0.184]
[1735141122141,0.26076336,705.65,704.68,0.184]
[1735141122342,0.26076336,705.64,704.68,0.184]
[1735141122546,0.26076336,705.63,704.68,0.184]
[1735141122849,0.26076336,705.62,704.68,0.184]
[1735141123042,0.26076336,705.61,704.68,0.184]
[1735141123245,1.0402868,705.75,704.68,0.184]
[1735141123439,0.26075005,705.74,704.68,0.184]
[1735141123649,0.26075039,705.73,704.68,0.184]
[1735141123843,0.26075039,705.72,704.68,0.184]
[1735141124042,0.26075039,705.71,704.68,0.184]
[1735141124348,1.0402868,705.76,704.68,0.184]
[1735141124545,0.26075355,705.75,704.68,0.184]
[1735141126445,1.0402868,705.76,704.68,0.184]
[1735141126646,0.26075317,705.75,704.68,0.184]
[1735141127053,0.26075317,705.74,704.68,0.184]
[1735141127253,0.26075317,705.73,704.68,0.184]
[1735141127454,1.0402868,705.75,704.68,0.184]
[1735141127455,0.26075317,705.72,704.68,0.184]
[1735141127656,0.26075317,705.71,704.68,0.184]
[1735141127855,0.26075317,705.7,704.68,0.184]
[1735141128056,0.26075317,705.69,704.68,0.184]
[1735141128252,0.26075317,705.68,704.68,0.184]
[1735141128556,0.26075317,705.67,704.68,0.184]
[1735141128756,0.26075317,705.66,704.68,0.184]
[1735141128958,0.26075317,705.65,704.68,0.184]
[1735141129150,0.26075317,705.64,704.68,0.184]
[1735141129351,0.26075317,705.63,704.68,0.184]
[1735141129555,0.26075317,705.62,704.68,0.184]
[1735141129752,1.0402868,705.79,704.68,0.184]
[1735141130053,0.26076173,705.78,704.68,0.184]
[1735141130260,0.26076173,705.77,704.68,0.184]
[1735141130458,1.0402868,705.83,704.68,0.184]
[1735141130672,0.26075388,705.82,704.68,0.184]
[1735141131259,0.26075388,705.81,704.68,0.184]
[1735141131459,0.26075388,705.8,704.68,0.184]
[1735141131659,0.26075388,705.79,704.68,0.184]
[1735141131861,0.26075388,705.78,704.68,0.184]
[1735141132053,0.26076113,705.77,704.68,0.184]
[1735141132254,1.0402868,706.02,704.68,0.184]
[1735141132455,0.26076096,706.01,704.68,0.184]
[1735141132655,1.30104776,706.01,704.68,0.184]
[1735141132858,0.26077635,706.0,704.68,0.184]
[1735141133258,1.0402868,705.97,704.68,0.184]
[1735141133461,0.26077635,705.96,704.68,0.184]
[1735141134258,0.26077635,705.95,704.68,0.184]
[1735141134456,0.26077635,705.94,704.68,0.184]
[1735141134657,0.26077635,705.93,704.68,0.184]
[1735141134857,0.26077635,705.92,704.68,0.184]
[1735141135162,0.26077635,705.91,704.68,0.184]
[1735141135465,0.26077635,705.9,704.68,0.184]
[1735141135663,0.26077635,705.89,704.68,0.184]
[1735141135863,0.26077635,705.88,704.68,0.184]
[1735141136164,0.26077635,705.87,704.68,0.184]
[1735141136361,0.26077635,705.86,704.68,0.184]
[1735141136563,0.26077635,705.85,704.68,0.184]
[1735141136758,0.26077635,705.84,704.68,0.184]
[1735141136964,0.26077635,705.83,704.68,0.184]
[1735141137263,0.26077635,705.82,704.68,0.184]
[1735141137458,0.26077635,705.81,704.68,0.184]
[1735141137658,0.26077635,705.99,704.68,0.184]
[1735141137865,0.26077635,705.98,704.68,0.184]
[1735141138064,0.6297833,706.21,704.68,0.184]
[1735141138065,1.30106315,705.97,704.68,0.184]
[1735141138265,0.26077635,705.96,704.68,0.184]
[1735141138861,1.0402868,705.72,704.68,0.184]
[1735141139066,0.26077635,705.71,704.68,0.184]
[1735141139861,1.30106315,705.71,704.68,0.184]
[1735141140063,0.26077635,705.7,704.68,0.184]
[1735141140263,0.28341457,705.68,704.68,0.184]
[1735141140466,0.26077635,705.67,704.68,0.184]
[1735141141064,0.28341457,705.68,704.68,0.184]
[1735141141264,0.2608429,705.67,704.68,0.184]
[1735141142269,0.2608343,705.66,704.68,0.184]
[1735141142470,0.2608343,705.67,704.68,0.184]
[1735141142763,0.2608343,705.66,704.68,0.184]
[1735141142968,0.2608343,705.65,704.68,0.184]
[1735141143169,0.2608343,705.64,704.68,0.184]
[1735141143367,0.2608343,705.63,704.68,0.184]
[1735141143562,0.2608343,705.67,704.68,0.184]
[1735141143764,0.2608343,705.66,704.68,0.184]
[1735141143968,0.2608343,705.65,704.68,0.184]
[1735141144165,0.2608343,705.64,704.68,0.184]
[1735141144368,0.2608343,705.63,704.68,0.184]
[1735141144563,0.2608343,705.62,704.68,0.184]
[1735141144768,0.2608343,705.61,704.68,0.184]
[1735141144966,0.28341457,705.68,704.68,0.184]
[1735141151272,0.26079415,705.67,704.68,0.184]
[1735141151479,0.28342662,705.65,704.68,0.184]
[1735141151668,0.26079415,705.64,704.68,0.184]
[1735141151973,0.28343867,705.62,704.68,0.184]
[1735141152166,0.26079415,705.61,704.68,0.184]
[1735141152371,0.28345072,705.59,704.68,0.184]
[1735141152570,0.26079415,705.58,704.68,0.184]
[1735141152971,0.28346278,705.56,704.68,0.184]
[1735141153170,0.26079415,705.55,704.68,0.184]
[1735141153371,0.26080337,705.54,704.68,0.184]
[1735141153567,0.5442782,705.53,704.68,0.184]
[1735141153769,0.28348287,705.51,704.68,0.184]
[1735141159875,0.26079748,705.5,704.68,0.184]
[1735141160172,0.28349492,705.48,704.68,0.184]
[1735141165079,0.26081699,705.47,704.68,0.184]
[1735141165280,0.26082023,705.46,704.68,0.184]
[1735141165480,0.26082023,705.45,704.68,0.184]
[1735141165677,0.26082023,705.44,704.68,0.184]
[1735141165874,0.26082023,705.43,704.68,0.184]
[1735141166079,0.28351903,705.42,704.68,0.184]
[1735141172979,0.26084079,705.41,704.68,0.184]
[1735141173484,0.26084079,705.41,704.68,0.17242414]
[1735141173685,0.26084479,705.4,704.68,0.17242414]
[1735141173887,0.28351903,705.42,704.68,0.17242414]
[1735141195802,0.26087298,705.41,704.68,0.17242414]
[1735141196001,0.28352707,705.4,704.68,0.17242414]
[1735141348409,0.26089352,705.39,704.68,0.17242414]
[1735141348716,0.28353511,705.38,704.68,0.17242414]
[1735141348915,0.26089352,705.37,704.68,0.17242414]
[1735141349113,0.28354315,705.36,704.68,0.17242414]
[1735141349314,0.26089352,705.35,704.68,0.17242414]
[1735141349512,0.28355119,705.34,704.68,0.17242414]
[1735141350411,0.2608954,705.33,704.68,0.17242414]
[1735141350718,0.28355119,705.34,704.68,0.17242414]
[1735141351017,0.26090202,705.33,704.68,0.17242414]
[1735141351419,0.28355923,705.32,704.68,0.17242414]
[1735141351716,0.26090202,705.31,704.68,0.17242414]
[1735141351919,1.0402868,705.56,704.68,0.17242414]
[1735141351920,0.28356727,705.3,704.68,0.17242414]
[1735141355119,0.28356727,705.3,703.31,1.2626359]
[1735141355615,0.28356727,705.3,697.04,8.48240486]
[1735141355616,0.28356727,705.3,702.46,1.2626359]
[1735141355815,0.28356727,705.3,702.6,0.28465698]
[1735141356521,0.28356727,705.3,702.88,1.2626359]
[1735141357223,0.28356727,705.3,703.13,1.2626359]
[1735141358017,0.28356727,705.3,703.16,1.2626359]
[1735141358921,0.28356727,705.3,703.18,1.2626359]
[1735141359717,0.28356727,705.3,703.2,0.2844141]
[1735141360023,0.28356727,705.3,703.2,1.54705]
[1735141360821,0.28356727,705.3,703.2,0.2844141]
[1735141361924,0.28356727,705.3,703.2,2.84030781]
[1735141362123,0.28356727,705.3,703.21,2.80521095]
[1735141362324,0.28356727,705.3,703.23,0.28440197]
[1735141362925,0.28356727,705.3,703.23,3.08803091]
[1735141363255,0.28356727,705.3,703.23,5.64392462]
[1735141363422,0.28356727,705.3,703.23,2.84029568]
[1735141363620,0.28356727,705.3,703.24,5.35752454]
[1735141363819,0.28356727,705.3,703.25,5.35754537]
[1735141364026,0.28356727,705.3,703.26,0.28438984]
[1735141366523,0.28356727,705.3,703.26,1.54702574]
[1735141367329,0.28356727,705.3,703.26,0.28438984]
[1735141369729,0.28356727,705.3,703.27,1.2626359]
[1735141370025,0.28356727,705.3,703.27,6.61729637]
[1735141370224,0.28356727,705.3,703.28,2.8015325]
[1735141370429,0.28356727,705.3,703.3,0.28437366]
[1735141370826,0.28356727,705.3,703.3,3.08590616]
[1735141371026,0.28356727,705.3,703.31,2.55312797]
[1735141371226,0.28356727,705.3,703.32,2.8015325]
[1735141371531,0.28356727,705.3,703.33,2.55312797]
[1735141371725,0.28356727,705.3,703.34,2.8015325]
[1735141372126,0.28356727,705.3,703.36,0.2843494]
[1735141372525,0.28356727,705.3,703.36,3.0858819]
[1735141372725,0.28356727,705.3,703.37,2.55312797]
[1735141372930,0.28356727,705.3,703.43,1.2626359]
[1735141373130,0.28356727,705.3,703.45,0.28431302]
[1735141374634,0.28356727,705.3,703.45,3.08584552]
[1735141374834,0.28356727,705.3,703.57,1.2626359]
[1735141375034,0.28356727,705.3,703.58,0.28426049]
[1735141377734,0.28356727,705.3,703.58,2.83738846]
[1735141378037,0.28356727,705.3,703.58,0.28426049]
[1735141381134,0.28356727,705.3,703.61,1.2626359]
[1735141382127,0.28356727,705.3,703.6,1.2626359]
[1735141382835,0.28356727,705.3,703.58,3.08863477]
[1735141383231,0.28356727,705.3,703.59,2.55312797]
[1735141383435,0.28356727,705.3,703.6,2.80437428]
[1735141383834,0.28356727,705.3,703.61,2.55312797]
[1735141384128,0.28356727,705.3,703.62,2.80437428]
[1735141384531,0.28356727,705.3,703.63,2.55312797]
[1735141384736,0.28356727,705.3,703.64,2.80437428]
[1735141385228,0.28356727,705.3,703.65,2.55312797]
[1735141385428,0.28356727,705.3,703.66,2.80437428]
[1735141385934,0.28356727,705.3,703.67,2.55312797]
[1735141386138,0.28356727,705.3,703.68,2.80437428]
[1735141386530,0.28356727,705.3,703.69,2.55312797]
[1735141386730,0.28356727,705.3,703.7,2.80437428]
[1735141387031,0.28356727,705.3,703.71,2.55312797]
[1735141387437,0.28356727,705.3,703.58,0.28426049]
[1735141390537,0.28356727,705.3,703.58,5.64496923]
[1735141390734,0.28356727,705.3,703.59,2.80758077]
[1735141390932,0.28356727,705.3,703.59,5.36070874]
[1735141391133,0.28356727,705.3,703.65,1.2626359]
[1735141391734,0.28356727,705.3,703.62,5.36070874]
[1735141391735,0.28356727,705.3,703.63,2.80758077]
[1735141391933,0.28356727,705.3,703.63,5.36070874]
[1735141392137,0.28356727,705.3,703.64,2.55312797]
[1735141392543,0.28356727,705.3,703.58,0.28426049]
[1735141395839,0.28356727,705.3,703.58,5.64607604]
[1735141396033,0.28356727,705.3,703.58,2.83738846]
[1735141396238,0.28356727,705.3,703.58,0.28426049]
[1735141397643,0.26092992,705.29,703.58,0.28426049]
[1735141399945,0.28357933,705.27,703.58,0.28426049]
[1735141400145,0.26092992,705.26,703.58,0.28426049]
[1735141400346,0.2835914,705.24,703.58,0.28426049]
[1735141400547,0.26092992,705.23,703.58,0.28426049]
[1735141400745,0.2835914,705.24,703.58,0.28426049]
[1735141400947,0.26094474,705.23,703.58,0.28426049]
[1735141401141,0.2835914,705.24,703.58,0.28426049]
[1735141405443,0.26094833,705.23,703.58,0.28426049]
[1735141407963,0.28360346,705.21,703.58,0.28426049]
[1735141408146,0.26094833,705.2,703.58,0.28426049]
[1735141408349,0.28361553,705.18,703.58,0.28426049]
[1735141408554,0.26094833,705.17,703.58,0.28426049]
[1735141409054,0.28362759,705.15,703.58,0.28426049]
[1735141409252,0.26094833,705.14,703.58,0.28426049]
[1735141409450,0.28363966,705.12,703.58,0.28426049]
[1735141409653,0.26094833,705.11,703.58,0.28426049]
[1735141409953,0.28365173,705.09,703.58,0.28426049]
[1735141410151,0.26094833,705.08,703.58,0.28426049]
[1735141410353,0.2836638,705.06,703.58,0.28426049]
[1735141410754,0.26096684,705.05,703.58,0.28426049]
[1735141411150,0.26097382,705.04,703.58,0.28426049]
[1735141411350,0.28367587,705.03,703.58,0.28426049]
[1735141443571,0.260982,705.02,703.58,0.28426049]
[1735141443772,0.28368794,705.0,703.58,0.28426049]
[1735141444068,0.26099377,704.99,703.58,0.28426049]
[1735141444272,0.28369599,704.98,703.58,0.28426049]
[1735141444470,0.26099571,704.97,703.58,0.28426049]
[1735141444669,0.28370403,704.96,703.58,0.28426049]
[1735141447176,0.26101,704.95,703.58,0.28426049]
[1735141447368,0.28371611,704.93,703.58,0.28426049]
[1735141448872,0.26102936,704.92,703.58,0.28426049]
[1735141449079,0.28372416,704.91,703.58,0.28426049]
[1735141463389,0.28372416,704.91,703.24,2.81427989]
[1735141463782,0.28372416,704.91,703.25,2.56016415]
[1735141463985,0.28372416,704.91,703.26,2.81427989]
[1735141464382,0.28372416,704.91,703.27,2.56016415]
[1735141464985,0.28372416,704.91,703.09,1.2626359]
[1735141465487,0.28372416,704.91,703.1,1.54709045]
[1735141465687,0.28372416,704.91,703.11,0.28445051]
[1735141467589,0.28372416,704.91,703.11,3.09856397]
[1735141467882,0.28372416,704.91,703.12,2.56016415]
[1735141468190,0.28372416,704.91,703.13,3.09855588]
[1735141468387,0.28372416,704.91,703.14,0.28443837]
[1735141468582,0.28372416,704.91,703.14,2.84460252]
[1735141468784,0.28372416,704.91,703.15,2.81411346]
[1735141468982,0.28372416,704.91,703.16,0.28443028]
[1735141469186,0.28372416,704.91,703.16,2.84459443]
[1735141469386,0.28372416,704.91,703.17,2.81411346]
[1735141469583,0.28372416,704.91,703.18,0.28442219]
[1735141469789,0.28372416,704.91,703.18,2.84458634]
[1735141469985,0.28372416,704.91,703.19,2.81411346]
[1735141470687,0.28372416,704.91,703.2,2.56016415]
[1735141470989,0.28372416,704.91,703.21,2.81411346]
[1735141471184,0.28372416,704.91,703.22,2.56016415]
[1735141471382,0.28372416,704.91,703.23,2.81411346]
[1735141471890,0.28372416,704.91,703.24,2.56016415]
[1735141472088,0.28372416,704.91,703.25,2.81411346]
[1735141472385,0.28372416,704.91,703.26,2.56016415]
[1735141473189,0.28372416,704.91,703.27,2.56016415]
[1735141473588,0.28372416,704.91,703.18,0.28442219]
[1735141476589,0.28372416,704.91,703.18,1.55968215]
[1735141477392,0.28372416,704.91,703.18,0.28442219]
[1735141477792,0.28372416,704.91,703.18,5.65734663]
[1735141477992,0.28372416,704.91,703.19,2.81276029]
[1735141478193,0.28372416,704.91,703.19,5.37292444]
[1735141478388,0.28372416,704.91,703.2,2.81276029]
[1735141478593,0.28372416,704.91,703.2,5.37292444]
[1735141478788,0.28372416,704.91,703.21,5.37292444]
[1735141478988,0.28372416,704.91,703.22,2.81276029]
[1735141479188,0.28372416,704.91,703.22,5.37292444]
[1735141479391,0.28372416,704.91,703.23,2.56016415]
[1735141479789,0.28372416,704.91,703.19,1.27525996]
[1735141480290,0.28372416,704.91,703.18,0.28442219]
[1735141480895,0.26108605,704.9,703.18,0.28442219]
[1735141481697,0.28372416,704.91,703.18,0.28442219]
[1735141481999,1.04947716,704.81,703.18,0.28442219]
[1735141482296,0.26111097,704.8,703.18,0.28442219]
[1735141482796,0.26110331,704.79,703.18,0.28442219]
[1735141482998,0.26110331,704.78,703.18,0.28442219]
[1735141483198,0.26107608,704.77,703.18,0.28442219]
[1735141483398,0.28378857,704.75,703.18,0.28442219]
[1735141487802,0.28378857,704.75,703.18,5.65936498]
[1735141488003,0.28378857,704.75,703.18,0.28442219]
[1735141488196,0.28378857,704.75,703.18,3.09467843]
[1735141488400,0.28378857,704.75,703.18,0.28442219]
[1735141501916,0.28378857,704.75,703.26,1.27525996]
[1735141502809,0.28378857,704.75,703.27,1.27525996]
[1735141503611,0.28378857,704.75,703.32,1.27525996]
[1735141504116,0.28378857,704.75,703.33,0.28436153]
[1735141505916,0.28378857,704.75,703.33,3.09610127]
[1735141506118,0.28378857,704.75,703.34,2.56097091]
[1735141506515,0.28378857,704.75,703.35,2.81416674]
[1735141506716,0.28378857,704.75,703.33,0.28436153]
[1735141510816,0.2610841,704.74,703.33,0.28436153]
[1735141515121,0.26108034,704.73,703.33,0.28436153]
[1735141515323,0.26108034,704.72,703.33,0.28436153]
[1735141515524,0.26108995,704.71,703.33,0.28436153]
[1735141515824,0.28378857,704.75,703.33,0.28436153]
[1735141516026,0.26109652,704.74,703.33,0.28436153]
[1735141517021,0.26109992,704.73,703.33,0.28436153]
[1735141517219,0.26110307,704.72,703.33,0.28436153]
[1735141517422,0.26110307,704.71,703.33,0.28436153]
[1735141517625,0.28378857,704.75,703.33,0.28436153]
[1735141517824,0.26110269,704.74,703.33,0.28436153]
[1735141518222,0.26108332,704.73,703.33,0.28436153]
[1735141518424,0.28378857,704.75,703.33,0.28436153]
[1735141518623,0.26108451,704.74,703.33,0.28436153]
[1735141519025,0.28378857,704.75,703.33,0.28436153]
[1735141525533,0.26108748,704.74,703.33,0.28436153]
[1735141525929,0.28378857,704.75,703.33,0.28436153]
[1735141526129,0.26109042,704.74,703.33,0.28436153]
[1735141526734,0.28378857,704.75,703.33,0.28436153]
[1735141526935,0.26110302,704.74,703.33,0.28436153]
[1735141528934,0.28380065,704.72,703.33,0.28436153]
[1735141529135,0.26110246,704.71,703.33,0.28436153]
[1735141529436,0.28380065,704.72,703.12,2.564407]
[1735141529635,0.28380065,704.72,702.95,1.27525996]
[1735141530136,0.28380065,704.72,702.3,1.27525996]
[1735141530329,0.28380065,704.72,702.41,0.28473398]
[1735141532940,0.28380065,704.72,702.49,1.27525996]
[1735141534135,0.28380065,704.72,702.7,1.27525996]
[1735141535238,0.28380065,704.72,702.63,4.08841385]
[1735141535439,0.28380065,704.72,702.64,2.81315389]
[1735141535635,0.28380065,704.72,702.65,2.56217698]
[1735141536133,0.26115553,704.71,702.65,2.56217698]
[1735141536540,0.26115553,704.71,702.66,2.81151098]
[1735141536739,0.26115553,704.71,702.67,5.37368796]
[1735141536943,0.28380065,704.72,702.68,2.81151098]
[1735141537141,0.2611618,704.71,702.69,2.56217698]
[1735141537440,0.2611618,704.71,702.47,1.27525996]
[1735141537641,0.2611618,704.71,702.51,1.27525996]
[1735141538440,0.28380065,704.72,702.51,1.27525996]
[1735141539141,0.28380065,704.72,702.53,0.28468535]
[1735141540344,0.26115292,704.71,702.53,0.28468535]
[1735141540954,0.26115292,704.71,702.6,1.27525996]
[1735141541543,0.28380065,704.72,702.62,0.28464888]
[1735141541741,0.28380065,704.72,702.62,1.55990884]
[1735141542546,0.28380065,704.72,702.69,1.27525996]
[1735141543741,0.26112001,704.71,702.7,1.27525996]
[1735141543951,0.28381274,704.69,702.71,0.28461242]
[1735141544140,0.26112001,704.68,702.71,0.28461242]
[1735141544344,0.28382482,704.66,702.96,1.27525996]
[1735141544540,0.26112001,704.65,702.96,1.27525996]
[1735141544740,0.26112001,704.65,702.97,0.28450716]
[1735141544939,0.28383287,704.64,702.97,0.28450716]